bitfinex/quotes_ETHUSD_20241116
["timestamp","ask_amount","ask_price","bid_price","bid_amount"]
[1731731559580,3.18615,3138.6,3138.1,3.0]
[1731731560541,3.18615,3138.6,3137.4,1.89863286]
[1731731560542,3.18704,3137.7,3137.4,1.89863286]
[1731731560858,3.18704,3137.7,3137.4,1.26735561]
[1731731561056,3.18693,3137.9,3137.4,1.26735561]
[1731731561263,0.7889,3138.5,3137.4,1.26735561]
[1731731561573,3.18704,3137.7,3137.4,1.26735561]
[1731731561890,3.18681,3138.0,3137.4,1.26735561]
[1731731562261,3.18701,3137.8,3137.4,1.26735561]
[1731731562593,3.18704,3137.7,3137.4,1.26735561]
[1731731563772,3.505744,3137.7,3137.4,0.49865561]
[1731731563986,3.505744,3137.7,3136.9,3.7687]
[1731731563987,3.505744,3137.7,3137.0,0.06375195]
[1731731564283,3.505744,3137.7,3137.1,3.0]
[1731731564650,3.505744,3137.7,3137.0,3.08212247]
[1731731564855,3.505744,3137.7,3136.9,0.7687]
[1731731565998,3.18704,3137.7,3137.0,3.18772]
[1731731566300,3.18704,3137.7,3136.9,3.7687]
[1731731566467,3.18704,3137.7,3136.9,6.95654]
[1731731566650,3.18704,3137.7,3136.9,3.7687]
[1731731566850,3.18704,3137.7,3136.9,0.7687]
[1731731568270,3.18704,3137.7,3136.9,3.7687]
[1731731569163,3.18704,3137.7,3137.4,0.8239]
[1731731569899,3.18704,3137.7,3137.5,0.23715885]
[1731731570207,3.18694,3137.9,3137.5,0.23715885]
[1731731570602,3.18694,3137.9,3137.7,0.23715885]
[1731731570796,3.18694,3137.9,3137.8,0.23715885]
[1731731571410,3.18667,3138.1,3137.8,0.23715885]
[1731731571615,3.18674,3138.0,3137.9,0.23709874]
[1731731572192,3.18674,3138.0,3137.4,0.8239]
[1731731572388,3.18699,3137.8,3137.7,0.23710948]
[1731731573438,3.18674,3138.0,3137.7,0.23710948]
[1731731573728,3.18674,3138.0,3137.8,0.23710948]
[1731731573891,3.18674,3138.0,3137.9,0.23710948]
[1731731574297,3.18656,3138.2,3137.9,0.23710948]
[1731731574533,3.18656,3138.2,3138.0,0.23710948]
[1731731574709,3.18656,3138.2,3137.4,0.8239]
[1731731574909,3.18656,3138.2,3137.7,0.23705414]
[1731731575116,3.18656,3138.2,3137.8,0.23705414]
[1731731575299,3.18656,3138.2,3137.9,0.23705414]
[1731731575635,3.18656,3138.2,3138.0,0.23705414]
[1731731575853,3.18656,3138.2,3137.6,3.3320262]
[1731731576150,3.18637,3138.4,3137.8,0.8239]
[1731731576349,4.01495,3138.6,3137.9,0.23701379]
[1731731576636,3.71693692,3139.0,3137.7,0.06373565]
[1731731576637,0.8288,3138.9,3138.2,0.8239]
[1731731576945,3.18583,3138.9,3138.3,3.42343379]
[1731731577096,3.18593,3138.8,3138.4,0.23701379]
[1731731577296,3.18604,3138.7,3138.5,0.23701379]
[1731731577497,3.18614,3138.6,3138.2,0.8239]
[1731731577770,3.18614,3138.6,3138.3,0.23673697]
[1731731578039,3.18625,3138.5,3138.4,0.23673697]
[1731731578335,3.18625,3138.5,3137.9,1.0607076]
[1731731578521,3.18625,3138.5,3138.0,0.2368076]
[1731731578847,3.18625,3138.5,3138.1,0.23678352]
[1731731579037,3.18625,3138.5,3138.2,0.23678352]
[1731731579222,3.18633,3138.4,3138.3,0.23678352]
[1731731580145,3.9383184,3138.4,3138.3,0.23678352]
[1731731580341,3.18692,3137.9,3137.6,0.9687862]
[1731731580515,3.18701,3137.8,3137.7,0.23687231]
[1731731581352,4.01559,3138.0,3137.7,0.23676216]
[1731731581555,4.01533,3138.3,3137.8,0.23676216]
[1731731581759,4.01533,3138.3,3137.9,0.23676216]
[1731731581929,3.18654,3138.2,3138.0,0.23676216]
[1731731582128,3.18664,3138.1,3137.6,0.1448862]
[1731731582451,3.18675,3138.0,3137.7,0.23675916]
[1731731582619,3.18686,3137.9,3137.8,0.23675916]
[1731731582819,3.18675,3138.0,3137.8,0.23675916]
[1731731583018,3.18694,3137.8,3137.6,0.1448862]
[1731731583337,3.18694,3137.8,3137.7,0.23687988]
[1731731587618,0.3588264,3138.0,3137.7,0.23687988]
[1731731587940,3.18665,3138.1,3137.8,0.23687988]
[1731731588264,3.18665,3138.1,3137.9,0.23687988]
[1731731588620,3.18675,3138.0,3137.6,0.9394862]
[1731731588856,4.01527,3138.3,3137.6,0.9394862]
[1731731589118,4.01527,3138.3,3137.6,4.1265762]
[1731731589693,0.8288,3138.3,3137.9,3.18678]
[1731731589846,3.18627,3138.5,3137.9,3.18678]
[1731731590248,8.92,3138.6,3137.6,0.9394862]
[1731731590499,3.186,3138.8,3138.2,0.7946]
[1731731590663,3.901425,3138.8,3137.7,3.98161]
[1731731590870,3.18603,3138.7,3137.9,3.18682]
[1731731592097,3.18586,3138.9,3138.1,3.18654]
[1731731592303,3.18586,3138.9,3138.2,0.7946]
[1731731592481,3.18566,3139.1,3138.4,3.18632]
[1731731592837,3.18522,3139.5,3138.8,3.18588]
[1731731593115,4.604313,3139.9,3139.0,3.18572]
[1731731593271,3.18505,3139.7,3139.0,3.18572]
[1731731593782,3.96737,3139.9,3139.1,3.18562]
[1731731594152,0.7825,3139.9,3139.1,3.18555]
[1731731594486,3.18514,3139.6,3138.9,3.98042]
[1731731594684,3.18514,3139.6,3138.9,0.7946]
[1731731594891,3.18514,3139.6,3139.0,3.18572]
[1731731595692,3.18514,3139.6,3138.9,3.98039]
[1731731597458,3.18532,3139.4,3138.9,0.7946]
[1731731597965,3.96736,3139.9,3138.9,0.7946]
[1731731598302,3.18538,3139.4,3138.9,0.7946]
[1731731601767,3.18522,3139.5,3138.9,0.7946]
[1731731602265,3.18522,3139.5,3138.9,3.98042]
[1731731604865,3.18494,3139.8,3139.0,3.1857]
[1731731604866,3.18503,3139.7,3139.0,3.1857]
[1731731605072,3.18494,3139.8,3138.9,3.98042]
[1731731605375,3.18472,3140.0,3139.2,0.7946]
[1731731605582,3.18461,3140.1,3139.4,3.18531]
[1731731605981,3.18473,3140.0,3139.4,3.18531]
[1731731606198,3.18499,3139.8,3139.2,0.7946]
[1731731606487,3.18502,3139.7,3139.2,0.7946]
[1731731606684,3.18481,3139.9,3139.2,0.7946]
[1731731606891,3.18481,3139.9,3139.2,3.98004]
[1731731607211,3.18481,3139.9,3139.3,3.18541]
[1731731607503,3.18464,3140.1,3139.3,3.18541]
[1731731607926,3.18464,3140.1,3139.5,0.7807]
[1731731608474,3.18443,3140.3,3139.6,3.18503]
[1731731608804,3.18443,3140.3,3139.7,3.18501]
[1731731611228,3.18422,3140.5,3139.8,3.18484]
[1731731611513,3.18422,3140.5,3139.9,0.7807]
[1731731612184,3.18422,3140.5,3139.9,3.96548]
[1731731612386,3.18422,3140.5,3139.9,0.7807]
[1731731612727,3.18434,3140.4,3139.9,0.7807]
[1731731613918,3.18447,3140.3,3139.9,0.7807]
[1731731614114,3.18423,3140.5,3139.9,0.7807]
[1731731615017,3.18432,3140.4,3139.9,0.7807]
[1731731615575,3.18451,3140.2,3139.9,0.7807]
[1731731615813,3.18432,3140.4,3139.9,0.7807]
[1731731615969,3.18459,3140.2,3139.6,0.7807]
[1731731616407,3.18459,3140.2,3139.6,3.96581]
[1731731617569,3.18432,3140.4,3139.7,3.185]
[1731731617776,3.18437,3140.4,3139.6,0.84439481]
[1731731618129,0.8248,3140.9,3139.9,3.86282247]
[1731731618275,0.640771,3141.3,3139.9,3.86282247]
[1731731618276,3.1837,3141.0,3140.3,3.18434]
[1731731619522,3.1838,3140.9,3140.3,3.18434]
[1731731621141,4.0083,3141.2,3140.3,3.18434]
[1731731621308,3.18361,3141.1,3140.4,3.18422]
[1731731621511,3.18392,3140.8,3140.2,0.7807]
[1731731621728,3.18392,3140.8,3140.2,3.7807]
[1731731621904,6.36747,3141.0,3140.3,3.1844]
[1731731622442,3.18371,3141.0,3140.3,3.1844]
[1731731623749,4.00832,3141.2,3140.3,3.1844]
[1731731623903,3.18372,3141.0,3140.4,3.18426]
[1731731624704,3.18372,3141.0,3140.2,0.7807]
[1731731624705,4.00832,3141.2,3140.3,3.1844]
[1731731624900,3.18378,3141.0,3140.4,3.18426]
[1731731625299,4.00832,3141.2,3140.4,3.1843]
[1731731625500,4.00832,3141.2,3140.5,3.18418]
[1731731625940,3.18361,3141.1,3140.5,3.18418]
[1731731626521,3.18361,3141.1,3140.6,0.806]
[1731731627659,3.18378,3141.0,3140.6,0.806]
[1731731627865,3.18382,3140.9,3140.6,0.806]
[1731731628172,3.18378,3141.0,3140.6,0.806]
[1731731628378,3.18393,3140.8,3140.6,0.806]
[1731731629134,3.18378,3141.0,3140.6,0.806]
[1731731630380,3.1838,3140.9,3140.6,0.806]
[1731731630672,3.18378,3141.0,3140.3,0.7596]
[1731731630673,3.18391,3140.8,3140.3,0.7596]
[1731731631239,3.1841,3140.6,3140.3,0.7596]
[1731731631468,3.18391,3140.8,3140.3,0.7596]
[1731731632335,3.18371,3141.0,3140.4,3.1843]
[1731731632579,4.00832,3141.2,3140.4,3.1843]
[1731731632785,3.18369,3141.1,3140.4,3.1843]
[1731731633077,3.18373,3141.0,3140.4,3.1843]
[1731731637486,3.18381,3140.9,3140.3,0.7596]
[1731731637890,3.18381,3140.9,3140.3,3.944]
[1731731641512,0.8248,3141.2,3140.3,0.7596]
[1731731641827,3.18427,3140.5,3140.0,0.7748]
[1731731641959,3.98562,3140.7,3140.0,0.7748]
[1731731642165,0.8016,3140.7,3140.0,3.9595]
[1731731642364,3.1841,3140.6,3140.0,3.9595]
[1731731643308,0.8016,3140.7,3140.0,0.7748]
[1731731643513,3.18443,3140.3,3140.0,0.7748]
[1731731645122,3.18443,3140.3,3139.5,3.0]
[1731731645123,3.18461,3140.1,3139.5,3.0]
[1731731645637,3.18471,3140.0,3139.5,3.0]
[1731731646547,3.18477,3140.0,3139.4,3.0]
[1731731647117,3.98613,3140.2,3139.4,6.18522]
[1731731647338,3.18469,3140.1,3139.4,6.18522]
[1731731647844,3.18471,3140.0,3139.4,6.18522]
[1731731648062,3.98613,3140.2,3139.5,3.18521]
[1731731648205,3.18464,3140.1,3139.5,3.18521]
[1731731649362,3.18435,3140.4,3139.7,0.7653]
[1731731649499,3.18435,3140.4,3139.7,3.9503]
[1731731649946,3.18435,3140.4,3139.6,3.18511]
[1731731649947,3.18429,3140.5,3140.0,0.7653]
[1731731650445,3.1843,3140.4,3140.0,0.7653]
[1731731653317,0.39913,3140.7,3139.3,3.0]
[1731731653318,3.18472,3140.0,3139.7,0.7571]
[1731731653901,3.18498,3139.8,3139.4,0.7571]
[1731731654365,3.18502,3139.7,3139.4,0.7571]
[1731731654952,3.18522,3139.5,3139.2,0.33235177]
[1731731656977,3.18539,3139.4,3139.2,0.33235177]
[1731731657175,3.18542,3139.3,3139.2,0.33235177]
[1731731659759,4.01282,3139.3,3139.2,0.33235177]
[1731731661651,0.8274,3139.3,3138.3,0.7571]
[1731731661809,3.18591,3138.9,3138.3,0.7571]
[1731731662014,3.18572,3139.1,3138.4,0.82082372]
[1731731662336,3.18583,3138.9,3138.4,0.7571]
[1731731662709,3.18562,3139.1,3138.4,0.7571]
[1731731662907,3.186,3138.8,3138.4,0.7571]
[1731731663468,3.18645,3138.3,3137.9,0.7571]
[1731731663611,3.18623,3138.5,3137.9,0.7571]
[1731731663968,3.18635,3138.4,3137.9,0.7571]
[1731731665456,3.18623,3138.5,3137.9,0.7571]
[1731731666254,0.401329,3138.8,3137.9,0.7571]
[1731731666463,3.1863,3138.5,3137.9,0.7571]
[1731731666613,3.18634,3138.4,3137.9,0.7571]
[1731731667065,0.401329,3138.8,3137.9,0.7571]
[1731731667553,3.18641,3138.4,3137.9,0.7571]
[1731731667757,3.18662,3138.2,3137.7,0.7571]
[1731731667960,3.18662,3138.2,3137.6,0.1448862]
[1731731667961,3.18704,3137.7,3137.6,0.1448862]
[1731731674401,3.96944,3137.7,3137.6,0.1448862]
[1731731674709,4.685085,3137.7,3137.6,0.1448862]
[1731731675380,3.96944,3137.7,3137.6,0.1448862]
[1731731675585,3.18704,3137.7,3137.6,0.9647862]
[1731731675985,3.18704,3137.7,3137.6,0.1448862]
[1731731678898,3.08567812,3138.5,3137.6,0.1448862]
[1731731678899,3.1866,3138.2,3137.7,0.8199]
[1731731679118,3.18664,3138.1,3137.7,0.8199]
[1731731679323,3.18687,3137.9,3137.7,0.8199]
[1731731680430,6.37334,3138.1,3137.7,0.8199]
[1731731680623,3.18674,3138.0,3137.7,0.8199]
[1731731681024,3.18691,3137.9,3137.7,0.8199]
[1731731681365,3.18694,3137.8,3137.7,0.8199]
[1731731681674,3.18694,3137.8,3137.6,0.1448862]
[1731731681675,3.18704,3137.7,3137.6,0.1448862]
[1731731683497,0.7824,3138.3,3137.6,0.1448862]
[1731731683705,3.18671,3138.1,3137.6,0.1448862]
[1731731683985,3.96887,3138.3,3137.6,0.1448862]
[1731731683986,3.18634,3138.4,3137.7,4.00685]
[1731731684191,3.18614,3138.6,3137.9,3.18677]
[1731731685290,3.18627,3138.5,3137.7,4.00688]
[1731731686145,3.18593,3138.8,3138.1,4.00651]
[1731731686345,3.882763,3138.8,3138.1,0.8199]
[1731731686546,3.882763,3138.8,3138.2,3.18649]
[1731731686771,3.18606,3138.7,3138.1,0.8199]
[1731731690120,3.18563,3139.1,3138.4,3.18627]
[1731731690284,3.18563,3139.1,3138.5,0.7813]
[1731731690484,0.318563,3139.0,3138.5,0.7813]
[1731731691087,3.504293,3139.0,3138.5,0.7813]
[1731731691294,6.18559,3139.2,3138.5,3.96751]
[1731731691837,3.18562,3139.1,3138.5,3.96751]
[1731731693838,3.18562,3139.1,3138.5,0.7813]
[1731731694135,3.1859,3138.9,3138.5,0.7813]
[1731731694633,0.318562,3139.0,3138.5,0.7813]
[1731731694934,3.18593,3138.8,3138.0,0.7928]
[1731731695107,3.18634,3138.4,3138.0,0.7928]
[1731731695546,3.18614,3138.6,3138.0,0.7928]
[1731731695832,3.18633,3138.4,3138.0,0.7928]
[1731731699190,3.823577,3138.4,3138.0,0.7928]
[1731731699390,0.7502,3138.3,3137.7,0.7928]
[1731731699691,3.18664,3138.1,3137.7,0.7928]
[1731731700810,3.93664,3138.3,3137.7,0.7928]
[1731731701131,3.18655,3138.2,3137.7,0.7928]
[1731731701348,3.18644,3138.3,3137.7,3.97977]
[1731731702259,3.93649,3138.5,3137.8,3.18693]
[1731731702410,0.7502,3138.5,3137.9,3.18677]
[1731731702711,3.186,3138.8,3138.2,3.97933]
[1731731704307,3.18634,3138.4,3137.8,0.7928]
[1731731704512,3.823588,3138.4,3137.8,0.7928]
[1731731705054,3.18644,3138.3,3137.8,0.7928]
[1731731705757,3.1866,3138.2,3137.8,0.7928]
[1731731706009,3.823588,3138.4,3137.8,0.7928]
[1731731706170,3.18634,3138.4,3137.8,0.7928]
[1731731706319,3.18634,3138.4,3137.8,3.97972]
[1731731706519,3.18634,3138.4,3137.8,0.7928]
[1731731707663,3.18664,3138.1,3137.8,0.7928]
[1731731707851,3.18645,3138.3,3137.8,0.7928]
[1731731708251,3.18674,3138.0,3137.6,0.9386862]
[1731731708624,0.788,3138.2,3137.6,0.9386862]
[1731731708625,3.18702,3137.8,3137.6,0.9386862]
[1731731709149,3.18678,3138.0,3137.6,0.9386862]
[1731731709323,3.18685,3137.9,3137.6,0.9386862]
[1731731711790,3.18678,3138.0,3137.6,0.9386862]
[1731731711791,3.18676,3138.0,3137.6,0.9386862]
[1731731713855,3.18685,3137.9,3137.6,0.9386862]
[1731731715556,3.18695,3137.8,3137.6,0.9386862]
[1731731715893,3.18704,3137.7,3137.6,0.9386862]
[1731731716179,3.18685,3137.9,3137.6,0.9386862]
[1731731717138,3.18704,3137.7,3137.6,0.1448862]
[1731731727026,3.18695,3137.8,3137.6,0.1448862]
[1731731727190,0.8073,3138.1,3137.6,0.9737862]
[1731731727191,3.18664,3138.1,3137.6,0.9737862]
[1731731728219,3.18674,3138.0,3137.6,0.9737862]
[1731731728585,3.18675,3138.0,3137.6,0.9737862]
[1731731730610,3.18654,3138.2,3137.6,0.9737862]
[1731731730811,3.18684,3137.9,3137.6,0.9737862]
[1731731731772,3.18704,3137.8,3137.6,0.9737862]
[1731731731976,3.18704,3137.7,3137.6,0.1448862]
[1731731738615,3.18684,3137.9,3137.6,0.1448862]
[1731731738947,3.18684,3137.9,3137.6,0.9547862]
[1731731740108,3.18686,3137.9,3137.6,0.9547862]
[1731731740309,3.18668,3138.1,3137.6,0.9547862]
[1731731740541,3.18655,3138.2,3137.6,0.9547862]
[1731731740753,3.18647,3138.3,3137.8,0.8099]
[1731731740754,3.18644,3138.3,3137.8,0.8099]
[1731731741454,3.18654,3138.2,3137.8,0.8099]
[1731731741619,3.18682,3138.0,3137.6,0.9547862]
[1731731741818,3.18704,3137.7,3137.6,0.1448862]
[1731731742746,1.31558998,3138.0,3137.6,0.1448862]
[1731731742950,3.18701,3137.8,3137.6,0.1448862]
[1731731743461,3.18704,3137.7,3137.6,0.1448862]
[1731731744557,3.18701,3137.8,3137.6,0.1448862]
[1731731744852,3.18676,3138.0,3137.6,0.1448862]
[1731731745067,3.18687,3137.9,3137.6,0.1448862]
[1731731745355,1.31558998,3138.0,3137.6,0.1448862]
[1731731745565,3.18704,3137.7,3137.6,0.1448862]
[1731731746861,3.99444,3137.7,3137.6,0.1448862]
[1731731748168,3.18691,3137.9,3137.6,0.1448862]
[1731731748541,3.18704,3137.7,3137.6,0.1448862]
[1731731748990,4.218168,3137.7,3137.6,0.1448862]
[1731731752700,2.06598998,3137.8,3137.6,0.1448862]
[1731731752701,3.18695,3137.8,3137.6,0.1448862]
[1731731752926,3.18691,3137.9,3137.6,0.9268862]
[1731731753454,3.18704,3137.7,3137.6,0.1448862]
[1731731760644,0.7762,3138.3,3137.7,0.782]
[1731731760955,3.18673,3138.1,3137.7,0.782]
[1731731761673,3.18675,3138.0,3137.7,0.782]
[1731731761845,3.18661,3138.2,3137.7,0.782]
[1731731762500,3.18637,3138.4,3137.7,0.782]
[1731731762802,3.18654,3138.2,3137.8,0.782]
[1731731763459,3.18666,3138.1,3137.8,0.782]
[1731731764008,3.18704,3137.7,3137.6,0.1448862]
[1731731773286,3.94324,3137.7,3137.6,0.1448862]
[1731731775595,3.18704,3137.7,3137.6,0.1448862]
[1731731776823,3.94324,3137.7,3137.6,0.1448862]
[1731731776985,6.94324,3137.7,3137.6,0.1448862]
[1731731777183,8.26614324,3137.7,3137.6,0.1448862]
[1731731780989,8.27614324,3137.7,3137.6,0.1448862]
[1731731782300,8.27614324,3137.7,3137.6,6.2e-06]
[1731731783601,8.42731917,3137.7,3137.6,6.2e-06]
[1731731784099,8.27614324,3137.7,3137.6,6.2e-06]
[1731731785296,17.19614324,3137.7,3137.6,6.2e-06]
[1731731785890,17.18614324,3137.7,3137.6,6.2e-06]
[1731731787096,20.27500566,3137.7,3137.6,6.2e-06]
[1731731787621,20.83500566,3137.7,3137.6,6.2e-06]
[1731731788915,20.37952616,3137.7,3137.6,6.2e-06]
[1731731789906,19.0628347,3137.7,3137.6,6.2e-06]
[1731731790432,4.02016,3136.7,3136.6,0.08380682]
[1731731790742,5.33685146,3136.7,3136.6,0.08380682]
[1731731791033,7.11197512,3136.7,3136.6,0.08380682]
[1731731791618,10.11197512,3136.7,3136.6,0.08380682]
[1731731792337,10.12197512,3136.7,3136.6,0.08380682]
[1731731792541,11.45396663,3136.7,3136.6,0.08380682]
[1731731793121,11.44396663,3136.7,3136.6,0.08380682]
[1731731794632,11.45396663,3136.7,3136.6,0.08380682]
[1731731795529,11.44396663,3136.7,3136.6,0.08380682]
[1731731797007,12.00396663,3136.7,3136.6,0.08380682]
[1731731797216,20.92396663,3136.7,3136.6,6.82e-06]
[1731731797447,17.28215151,3136.7,3136.6,6.82e-06]
[1731731802507,17.83215151,3136.7,3136.6,6.82e-06]
[1731731805544,17.83215151,3136.7,3135.8,0.005]
[1731731805545,0.7763,3136.1,3135.8,0.005]
[1731731805745,3.18887,3135.9,3135.8,0.005]
[1731731806112,6.18887,3135.9,3135.8,0.005]
[1731731807308,7.52517,3135.9,3135.8,1e-05]
[1731731807527,9.79874451,3135.9,3135.8,1e-05]
[1731731807948,9.78874451,3135.9,3135.8,1e-05]
[1731731809138,9.23874451,3135.9,3135.8,1e-05]
[1731731809775,9.79874451,3135.9,3135.8,1e-05]
[1731731810617,3.18948,3135.3,3135.2,0.005]
[1731731810814,3.827365,3135.3,3135.2,0.005]
[1731731812054,3.18948,3135.3,3135.2,0.821]
[1731731812439,3.18948,3135.3,3135.2,0.005]
[1731731814338,10.06429512,3135.3,3135.2,0.005]
[1731731814539,3.18989,3134.9,3134.8,0.005]
[1731731814763,3.09181512,3135.0,3134.8,0.005]
[1731731814914,3.18977,3135.1,3134.8,0.005]
[1731731814915,5.29147298,3134.9,3134.8,0.005]
[1731731815148,8.30147298,3134.9,3134.8,0.005]
[1731731815356,9.45159728,3134.9,3134.8,0.005]
[1731731815850,18.37159728,3134.9,3134.8,0.005]
[1731731816351,18.92159728,3134.9,3134.8,0.005]
[1731731816850,20.69856561,3134.9,3134.8,0.005]
[1731731818501,20.68856561,3134.9,3134.8,0.005]
[1731731818654,17.0430143,3134.9,3134.8,0.005]
[1731731820385,16.2600143,3134.9,3134.8,0.005]
[1731731820604,15.10989,3134.9,3134.8,0.005]
[1731731820756,12.10989,3134.9,3134.8,0.005]
[1731731820958,3.18989,3134.9,3134.8,0.005]
[1731731822902,3.18977,3135.1,3134.8,0.005]
[1731731822903,3.18977,3135.1,3134.8,0.821]
[1731731823487,3.1895,3135.3,3134.8,0.821]
[1731731823689,3.18962,3135.2,3134.8,0.821]
[1731731824001,3.1893,3135.5,3134.8,0.821]
[1731731824186,3.0,3135.4,3134.8,3.19497]
[1731731824512,3.0,3135.4,3134.9,0.816]
[1731731824798,3.18908,3135.7,3134.9,0.816]
[1731731824989,3.18938,3135.5,3134.9,0.816]
[1731731825609,3.18945,3135.4,3134.9,0.816]
[1731731825898,3.18945,3135.4,3135.0,0.47523299]
[1731731826064,3.18945,3135.4,3135.0,0.23761933]
[1731731826259,3.18911,3135.7,3135.1,0.816]
[1731731826260,3.18929,3135.5,3135.1,0.816]
[1731731826463,3.18911,3135.7,3135.1,0.816]
[1731731826702,3.18925,3135.6,3135.1,0.816]
[1731731827066,3.18899,3135.8,3135.1,0.816]
[1731731827279,3.18886,3136.0,3135.3,0.816]
[1731731827489,3.18886,3136.0,3135.5,0.816]
[1731731827716,0.62898776,3136.4,3135.5,0.816]
[1731731827890,3.18903,3135.8,3135.5,0.816]
[1731731828294,3.1888,3136.0,3135.5,0.816]
[1731731828592,3.1885,3136.3,3135.5,0.816]
[1731731828789,3.18877,3136.0,3135.5,0.816]
[1731731829119,3.18857,3136.2,3135.7,0.8047]
[1731731829625,3.18839,3136.4,3135.8,0.8047]
[1731731829804,3.18839,3136.4,3135.8,3.18895]
[1731731830132,3.18839,3136.4,3135.9,1.04219336]
[1731731830286,3.18796,3136.8,3136.1,0.8047]
[1731731830489,3.18796,3136.8,3136.2,0.8047]
[1731731830717,3.18777,3137.0,3136.0,0.8047]
[1731731831023,3.18757,3137.2,3136.5,0.8047]
[1731731831316,3.18765,3137.1,3136.5,0.8047]
[1731731831875,3.18746,3137.3,3136.7,0.7909]
[1731731832283,3.18755,3137.3,3136.7,0.7909]
[1731731832483,3.18763,3137.2,3136.7,0.7909]
[1731731833521,3.18735,3137.4,3136.7,0.7909]
[1731731834018,3.18735,3137.4,3136.8,0.7909]
[1731731836316,3.18761,3137.2,3136.8,0.7909]
[1731731837193,3.18786,3136.9,3136.8,0.7909]
[1731731838027,3.18694,3137.9,3136.7,0.7909]
[1731731838317,3.18654,3138.2,3137.4,3.18731]
[1731731838528,3.18689,3137.9,3137.5,0.7909]
[1731731839026,3.48935431,3138.5,3137.5,0.7909]
[1731731839189,3.18712,3137.7,3137.5,0.7909]
[1731731839522,3.48935431,3138.5,3137.5,0.7909]
[1731731839523,3.18714,3137.6,3137.5,0.7909]
[1731731840079,3.18714,3137.6,3136.9,3.18778]
[1731731840080,3.18714,3137.6,3136.8,0.7909]
[1731731840286,3.18742,3137.4,3136.8,0.7909]
[1731731840579,3.18756,3137.2,3136.8,0.7909]
[1731731840905,3.18742,3137.4,3136.8,0.7909]
[1731731842180,3.09555131,3138.2,3136.7,3.25180388]
[1731731842181,3.18704,3137.8,3137.2,3.18754]
[1731731842386,3.18704,3137.8,3137.3,0.7909]
[1731731842727,3.18722,3137.6,3137.3,0.7909]
[1731731843222,3.18735,3137.4,3137.3,0.7909]
[1731731845098,3.18735,3137.4,3136.7,0.7909]
[1731731845297,3.18757,3137.2,3136.7,0.7909]
[1731731845487,3.18704,3137.7,3136.7,0.7909]
[1731731845687,3.18786,3136.9,3136.7,0.7909]
[1731731846118,3.18751,3137.3,3136.7,0.7909]
[1731731846295,3.18763,3137.2,3136.7,0.7909]
[1731731846626,3.18766,3137.1,3136.7,0.7909]
[1731731846795,3.18751,3137.3,3136.7,0.7909]
[1731731847420,3.393869,3137.7,3136.7,0.7909]
[1731731847628,3.18779,3137.0,3136.7,0.7909]
[1731731848722,3.18756,3137.2,3136.7,0.7909]
[1731731848960,0.4332659,3137.6,3136.7,0.7909]
[1731731848961,3.18786,3136.9,3136.7,0.7909]
[1731731849887,0.7686,3137.2,3136.0,0.7914]
[1731731850119,3.18833,3136.5,3136.0,0.7914]
[1731731850323,3.18837,3136.4,3136.0,0.7914]
[1731731850930,3.18818,3136.6,3136.0,0.7914]
[1731731853264,3.18818,3136.6,3136.0,0.85516826]
[1731731853573,3.18839,3136.4,3136.0,0.7914]
[1731731854483,3.18833,3136.5,3136.0,0.7914]
[1731731854484,3.18854,3136.3,3136.0,0.7914]
[1731731854631,3.18801,3136.8,3135.3,0.8171]
[1731731854632,3.18867,3136.1,3135.3,0.8171]
[1731731854837,3.18908,3135.7,3135.3,0.8171]
[1731731855546,3.18936,3135.5,3135.3,0.8171]
[1731731855746,3.18887,3135.9,3134.9,0.8171]
[1731731855977,3.18966,3135.2,3134.9,0.8171]
[1731731856528,3.1897,3135.1,3134.9,0.8171]
[1731731857339,3.18979,3135.0,3134.9,0.8171]
[1731731859591,3.18965,3135.2,3134.9,0.8171]
[1731731859741,3.18971,3135.1,3134.9,0.8171]
[1731731860580,8.92,3135.9,3134.9,0.8171]
[1731731860739,3.0,3135.9,3134.9,0.8171]
[1731731860939,3.18926,3135.6,3134.9,0.8171]
[1731731861361,4.01743,3136.0,3134.9,4.00692]
[1731731861362,0.8286,3136.0,3134.9,4.00692]
[1731731861582,3.18908,3135.7,3135.0,3.18978]
[1731731861940,3.18889,3135.9,3135.1,0.8171]
[1731731862278,3.18847,3136.3,3135.7,4.00617]
[1731731862578,3.09555131,3137.2,3135.9,3.1888]
[1731731862579,3.18796,3136.8,3135.9,3.1888]
[1731731862764,3.18796,3136.8,3135.6,0.01]
[1731731862765,3.18796,3136.8,3136.0,0.8171]
[1731731862939,3.1877,3137.1,3136.2,0.8171]
[1731731863145,3.1877,3137.1,3136.3,3.18845]
[1731731863146,3.18786,3136.9,3136.3,3.18845]
[1731731864362,3.18786,3136.9,3136.2,0.8171]
[1731731864567,3.1877,3137.1,3136.4,3.18836]
[1731731864878,3.1877,3137.1,3136.4,3.18827]
[1731731865085,3.18778,3137.0,3136.4,3.18827]
[1731731865300,12.10712,3137.7,3136.4,3.18827]
[1731731865301,3.18684,3137.9,3137.0,3.18773]
[1731731865456,0.8286,3138.0,3136.7,0.8171]
[1731731865457,3.18722,3137.6,3136.9,3.18784]
[1731731865853,3.18725,3137.5,3136.9,3.18784]
[1731731866889,3.18712,3137.7,3136.9,3.18784]
[1731731867192,0.637406,3137.6,3136.9,3.18784]
[1731731867501,3.824626,3137.6,3136.9,3.18784]
[1731731867701,3.18722,3137.6,3137.0,0.8171]
[1731731869403,3.18734,3137.5,3137.0,0.8171]
[1731731869556,3.18745,3137.3,3137.0,0.8171]
[1731731869903,3.18734,3137.5,3137.0,0.8171]
[1731731870261,3.18736,3137.4,3137.0,0.8171]
[1731731871397,3.18719,3137.6,3137.0,0.8171]